[Event "9th HDBank Open 2019"]
[Site "Ho Chi Minh City"]
[Date "2019.03.09"]
[Round "4.29"]
[White "Zou, Chen"]
[Black "Gandhi, Anish"]
[Result "1-0"]
[ECO "B90"]
[WhiteElo "2397"]
[BlackElo "2156"]
[Annotator "NA"]
[PlyCount "119"]
[EventDate "2019.03.07"]
[EventType "swiss"]
[EventCountry "VIE"]
[SourceTitle "playchess.com"]
[Source "ChessBase"]
[SourceQuality "1"]
[TimeControl "5400+30"]

1. e4 {[%emt 0:04:26]} c5 {[%emt 0:00:00]} 2. Nf3 {[%emt 0:00:04]} d6 {[%emt 0:00:00]} 3. d4 {[%emt 0:00:04]} cxd4 {[%emt 0:00:00]} 4. Nxd4 {[%emt 0:00:02]} Nf6 {[%emt 0:00:00]} 5. Nc3 {[%emt 0:00:03]} a6 {[%emt 0:00:00]} 6. f3 {[%emt 0:00:07]} e5 {[%emt 0:00:03]} 7. Nb3 {[%emt 0:00:03]} Be6 {[%emt 0:00:08]} 8. Be3 {[%emt 0:00:03]} h5 {[%emt 0:00:09]} 9. Qd2 {[%emt 0:00:09]} Nbd7 {[%emt 0:00:07]} 10. Nd5 {[%emt 0:00:07]} Bxd5 {[%emt 0:00:11]} 11. exd5 {[%emt 0:00:04]} g6 {[%emt 0:00:08]} 12. Be2 {[%emt 0:00:35]} Bg7 {[%emt 0:00:31]} 13. O-O {[%emt 0:00:06]} b6 {[%emt 0:00:13]} 14. c4 {[%emt 0:00:36]} O-O {[%emt 0:00:11]} 15. Rac1 {[%emt 0:02:30]} a5 {[%emt 0:00:43]} 16. Na1 {[%emt 0:00:50]} Nc5 {[%emt 0:00:32]} 17. Nc2 {[%emt 0:01:03]} h4 {[%emt 0:00:17]} 18. Bg5 {[%emt 0:06:49]} h3 {[%emt 0:00:40]} 19. g4 {[%emt 0:08:53]} Qd7 {[%emt 0:06:39]} 20. Bh6 {[%emt 0:06:11]} Nh7 {[%emt 0:05:53]} 21. Bxg7 {[%emt 0:03:20]} Kxg7 {[%emt 0:00:04]} 22. Ne3 {[%emt 0:00:27]} Qe7 23. Kh1 {[%emt 0:02:45]} Rae8 {[%emt 0:07:03]} 24. Rg1 {[%emt 0:03:59]} Ng5 {[%emt 0:01:04]} 25. Rg3 {[%emt 0:04:34]} Kh7 {[%emt 0:13:36]} 26. Rcg1 {[%emt 0:04:58]} Rg8 {[%emt 0:05:02]} 27. Qc1 {[%emt 0:22:01]} Rg7 {[%emt 0:01:49]} 28. Nd1 {[%emt 0:09:23]} Qf6 {[%emt 0:02:32]} 29. Nf2 {[%emt 0:01:03]} Rh8 {[%emt 0:14:34]} 30. Nxh3 {[%emt 0:02:14]} Nxh3 {[%emt 0:00:22]} 31. Rxh3+ {[%emt 0:00:06]} Kg8 {[%emt 0:00:02]} 32. Rxh8+ {[%emt 0:02:42]} Kxh8 {[%emt 0:00:05]} 33. Kg2 {[%emt 0:03:51]} Rh7 {[%emt 0:00:46]} 34. Rh1 {[%emt 0:01:40]} Kg7 {[%emt 0:01:57]} 35. g5 {[%emt 0:04:46]} Qf5 {[%emt 0:01:16]} 36. h4 {[%emt 0:00:20]} Rh8 {[%emt 0:02:24]} 37. Kg3 {[%emt 0:02:12]} Re8 {[%emt 0:04:01]} 38. h5 {[%emt 0:01:46]} gxh5 {[%emt 0:04:01]} 39. Rxh5 {[%emt 0:00:05]} Rh8 {[%emt 0:00:05]} 40. Rxh8 {[%emt 0:01:00]} Kxh8 {[%emt 0:00:02]} 41. a3 {[%emt 0:03:52]} a4 {[%emt 0:00:44]} 42. Bd1 {[%emt 0:00:32]} Nd3 {[%emt 0:13:03]} 43. Bc2 {[%emt 0:00:14]} e4 {[%emt 0:00:10]} 44. Qe3 {[%emt 0:00:51]} Qe5+ {[%emt 0:02:00]} 45. Kg4 {[%emt 0:00:02]} Qxb2 {[%emt 0:04:29]} 46. Bxd3 {[%emt 0:00:01]} exd3 {[%emt 0:00:04]} 47. Qxd3 {[%emt 0:00:18]} Qb3 {[%emt 0:00:49]} 48. Qf5 {[%emt 0:01:00]} Qxc4+ {[%emt 0:03:16]} 49. Kh5 {[%emt 0:00:05]} Kg8 {[%emt 0:01:37]} 50. g6 {[%emt 0:01:25]} Qc7 {[%emt 0:01:33]} 51. Qe4 {[%emt 0:00:42]} fxg6+ {[%emt 0:01:45]} 52. Qxg6+ {[%emt 0:00:19]} Kf8 {[%emt 0:00:32]} 53. Qh6+ {[%emt 0:00:02]} Kg8 {[%emt 0:00:28]} 54. Qg6+ {[%emt 0:00:41]} Kf8 {[%emt 0:00:12]} 55. Qh6+ {[%emt 0:00:13]} Kg8 {[%emt 0:00:03]} 56. Qg5+ {[%emt 0:00:15]} Kf8 {[%emt 0:02:05]} 57. Kh6 {[%emt 0:00:24]} Qd7 {[%emt 0:02:21]} 58. f4 {[%emt 0:00:39]} Qe7 {[%emt 0:02:46]} 59. Qxe7+ {[%emt 0:00:31]} Kxe7 {[%emt 0:00:09]} 60. Kg7 {[%emt 0:00:03]} 1-0

[Event "9th HDBank Open 2019"]
[Site "Ho Chi Minh City"]
[Date "2019.03.10"]
[Round "6.30"]
[White "Nandhidhaa, P V"]
[Black "Navalgund, Niranjan"]
[Result "*"]
[WhiteElo "2240"]
[BlackElo "2378"]
[Annotator "NA"]
[PlyCount "48"]
[EventDate "2019.03.07"]
[EventType "swiss"]
[EventCountry "VIE"]
[SourceTitle "playchess.com"]
[Source "ChessBase"]
[SourceQuality "1"]
[TimeControl "5400+30"]

1. Nf3 {[%emt 0:01:52]} Nf6 {[%emt 0:00:00]} 2. g3 {[%emt 0:00:05]} b6 {[%emt 0:00:00]} 3. Bg2 {[%emt 0:00:31]} Bb7 {[%emt 0:00:03]} 4. O-O {[%emt 0:00:17]} e6 {[%emt 0:00:17]} 5. d3 {[%emt 0:00:10]} c5 {[%emt 0:00:29]} 6. e4 {[%emt 0:00:34]} d6 {[%emt 0:00:06]} 7. Nh4 {[%emt 0:02:15]} Nc6 {[%emt 0:02:29]} 8. f4 {[%emt 0:00:56]} Be7 {[%emt 0:00:59]} 9. Be3 {[%emt 0:01:09]} Qc7 {[%emt 0:05:55]} 10. Nd2 {[%emt 0:01:19]} O-O-O {[%emt 0:01:32]} 11. c3 {[%emt 0:00:51]} Ba6 {[%emt 0:07:53]} 12. Qe2 {[%emt 0:08:25]} Kb8 {[%emt 0:03:29]} 13. Rfc1 {[%emt 0:01:01]} d5 {[%emt 0:01:55]} 14. e5 {[%emt 0:00:24]} Ne8 {[%emt 0:00:44]} 15. Nhf3 {[%emt 0:02:17]} f6 {[%emt 0:04:59]} 16. b4 {[%emt 0:05:17]} fxe5 {[%emt 0:21:18]} 17. bxc5 {[%emt 0:05:55]} bxc5 {[%emt 0:08:58]} 18. Nxe5 {[%emt 0:05:30]} Nd6 {[%emt 0:10:50]} 19. Nxc6+ {[%emt 0:06:50]} Qxc6 {[%emt 0:00:03]} 20. c4 {[%emt 0:00:14]} Nb7 {[%emt 0:07:25]} 21. Rab1 {[%emt 0:00:52]} Ka8 {[%emt 0:00:53]} 22. f5 {[%emt 0:06:31]} exf5 {[%emt 0:01:41]} 23. cxd5 {[%emt 0:00:09]} Rxd5 {[%emt 0:02:47]} 24. Nc4 {[%emt 0:05:29]} Rhd8 {[%emt 0:04:59]} *

[Event "9th HDBank Open 2019"]
[Site "Ho Chi Minh City"]
[Date "2019.03.11"]
[Round "7.28"]
[White "Miciano, John Marvin"]
[Black "Zou, Chen"]
[Result "1-0"]
[ECO "E09"]
[WhiteElo "2317"]
[BlackElo "2397"]
[Annotator "ChessBase"]
[PlyCount "177"]
[EventDate "2019.03.07"]
[EventType "swiss"]
[EventCountry "VIE"]
[SourceTitle "playchess.com"]
[Source "ChessBase"]
[SourceQuality "1"]
[TimeControl "5400+30"]

1. d4 {[%emt 0:00:00]} Nf6 {[%emt 0:00:50]} 2. c4 {[%emt 0:00:25]} e6 {[%emt 0:00:34]} 3. g3 {[%emt 0:00:40]} d5 {[%emt 0:00:21]} 4. Bg2 {[%emt 0:00:35]} Bb4+ {[%emt 0:00:47]} 5. Bd2 {[%emt 0:00:21]} Be7 {[%emt 0:00:08]} 6. Nf3 {[%emt 0:00:34]} O-O {[%emt 0:00:10]} 7. O-O {[%emt 0:00:42]} c6 {[%emt 0:00:19]} 8. Qc2 {[%emt 0:01:33]} Nbd7 {[%emt 0:00:22]} 9. Bf4 {[%emt 0:01:47]} Nh5 {[%emt 0:00:11]} 10. Bc1 {[%emt 0:02:49]} Nhf6 {[%emt 0:00:09]} 11. Nbd2 {[%emt 0:04:21]} b6 {[%emt 0:00:24]} 12. e4 {[%emt 0:00:48]} Bb7 {[%emt 0:00:06]} 13. e5 {[%emt 0:01:53]} Ne8 {[%emt 0:00:08]} 14. cxd5 {[%emt 0:01:04]} cxd5 {[%emt 0:00:06]} 15. Re1 {[%emt 0:01:01]} Rc8 {[%emt 0:00:25]} 16. Qa4 {[%emt 0:02:19]} Nc7 {[%emt 0:21:06]} 17. Bf1 {[%emt 0:02:40]} Qe8 {[%emt 0:08:47]} 18. Qd1 {[%emt 0:03:07]} Nb8 {[%emt 0:12:41]} 19. Bd3 {[%emt 0:01:34]} Nc6 {[%emt 0:01:05]} 20. Nb3 {[%emt 0:03:43]} a5 {[%emt 0:09:18]} 21. Bg5 {[%emt 0:04:53]} a4 {[%emt 0:10:57]} 22. Bxe7 {[%emt 0:01:55]} Qxe7 {[%emt 0:00:41]} 23. Nc1 {[%emt 0:01:02]} f6 {[%emt 0:06:00]} 24. Bf1 {[%emt 0:08:41]} Qf7 {[%emt 0:15:01]} 25. Nd3 {[%emt 0:07:02]} a3 {[%emt 0:09:49]} 26. Qd2 {[%emt 0:06:26]} Ba6 {[%emt 0:01:53]} 27. bxa3 {[%emt 0:08:21]} Kh8 {[%emt 0:00:28]} 28. Rab1 {[%emt 0:11:27]} Na5 {[%emt 0:00:17]} 29. exf6 {[%emt 0:00:43]} gxf6 {[%emt 0:00:05]} 30. Qb4 {[%emt 0:03:21]} Nc4 {[%emt 0:00:59]} 31. Nf4 {[%emt 0:00:31]} Rb8 {[%emt 0:00:30]} 32. Nd2 {[%emt 0:02:28]} Nxd2 {[%emt 0:00:50]} 33. Qxd2 {[%emt 0:00:10]} Bxf1 {[%emt 0:00:11]} 34. Kxf1 {[%emt 0:00:11]} Rfe8 {[%emt 0:00:27]} 35. Rbc1 {[%emt 0:02:46]} e5 {[%emt 0:00:54]} 36. dxe5 {[%emt 0:03:04]} fxe5 {[%emt 0:00:01]} 37. Nd3 {[%emt 0:01:22]} Qg7 {[%emt 0:00:02]} 38. Qc3 {[%emt 0:02:41]} Re7 {[%emt 0:01:26]} 39. Rxe5 {[%emt 0:02:35]} Rf7 {[%emt 0:00:01]} 40. Rg5 {[%emt 0:02:20]} Qxc3 {[%emt 0:00:10]} 41. Rxc3 {[%emt 0:00:05]} Nb5 {[%emt 0:01:17]} 42. Rc1 {[%emt 0:01:32]} Rd8 {[%emt 0:00:32]} 43. Nf4 {[%emt 0:02:50]} Nc7 {[%emt 0:00:27]} 44. Rd1 {[%emt 0:00:54]} d4 {[%emt 0:00:22]} 45. Re5 {[%emt 0:00:24]} Rfd7 {[%emt 0:00:17]} 46. Kg2 {[%emt 0:01:42]} Ra8 {[%emt 0:00:52]} 47. Rd3 {[%emt 0:00:34]} Na6 {[%emt 0:00:32]} 48. Rd5 {[%emt 0:01:14]} Rxd5 {[%emt 0:00:18]} 49. Nxd5 {[%emt 0:00:08]} Rd8 {[%emt 0:00:20]} 50. Nxb6 {[%emt 0:00:41]} Nc5 {[%emt 0:00:03]} 51. Rd1 {[%emt 0:00:14]} Kg7 {[%emt 0:00:19]} 52. Nc4 {[%emt 0:00:27]} Kf6 {[%emt 0:00:25]} 53. Nd2 {[%emt 0:01:00]} Ke5 {[%emt 0:01:34]} 54. Nb3 {[%emt 0:00:40]} Na4 {[%emt 0:00:31]} 55. Re1+ {[%emt 0:00:36]} Kf5 {[%emt 0:00:02]} 56. Kf3 {[%emt 0:00:31]} Nc3 {[%emt 0:00:18]} 57. Re7 {[%emt 0:00:23]} h5 {[%emt 0:00:31]} 58. Rc7 {[%emt 0:00:26]} Ke5 {[%emt 0:00:32]} 59. Rc5+ {[%emt 0:00:19]} Nd5 {[%emt 0:00:01]} 60. Ke2 {[%emt 0:00:35]} Ra8 {[%emt 0:00:49]} 61. Ra5 {[%emt 0:00:32]} Rd8 {[%emt 0:01:14]} 62. Kd3 {[%emt 0:00:21]} h4 {[%emt 0:00:32]} 63. f4+ {[%emt 0:00:16]} Kf5 {[%emt 0:00:30]} 64. Nxd4+ {[%emt 0:00:43]} Kg4 {[%emt 0:00:13]} 65. Ra6 {[%emt 0:00:53]} hxg3 {[%emt 0:00:15]} 66. hxg3 {[%emt 0:00:07]} Kxg3 {[%emt 0:00:03]} 67. f5 {[%emt 0:00:28]} Nc7 {[%emt 0:00:14]} 68. Ra5 {[%emt 0:00:23]} Kf4 {[%emt 0:01:43]} 69. a4 {[%emt 0:00:22]} Kg5 {[%emt 0:00:14]} 70. Kc4 {[%emt 0:00:29]} Kf6 {[%emt 0:00:31]} 71. Rc5 {[%emt 0:00:27]} Ne8 {[%emt 0:00:36]} 72. Rc6+ {[%emt 0:00:45]} Ke7 {[%emt 0:00:21]} 73. a5 {[%emt 0:00:50]} Nd6+ {[%emt 0:00:10]} 74. Kb4 {[%emt 0:00:32]} Kd7 {[%emt 0:00:04]} 75. Rc5 {[%emt 0:00:16]} Rf8 {[%emt 0:01:11]} 76. Rd5 {[%emt 0:00:28]} Ke7 {[%emt 0:00:51]} 77. a6 {[%emt 0:00:51]} Nc8 {[%emt 0:00:26]} 78. Nc6+ {[%emt 0:00:20]} Kf6 {[%emt 0:00:33]} 79. Kc5 {[%emt 0:00:27]} Rf7 {[%emt 0:00:09]} 80. Kb4 {[%emt 0:00:49]} Rc7 {[%emt 0:00:33]} 81. Rc5 {[%emt 0:00:17]} Nb6 {[%emt 0:00:53]} 82. Nd4 {[%emt 0:00:23]} Rd7 {[%emt 0:00:19]} 83. Rc6+ {[%emt 0:00:26]} Ke7 {[%emt 0:00:27]} 84. f6+ {[%emt 0:00:30]} Kf7 {[%emt 0:00:07]} 85. Rxb6 {[%emt 0:00:18]} Rxd4+ {[%emt 0:00:08]} 86. Kb5 {[%emt 0:00:06]} Rd5+ {[%emt 0:00:21]} 87. Kc6 {[%emt 0:00:23]} Rd4 {[%emt 0:01:22]} 88. a7 {[%emt 0:00:18]} Ra4 {[%emt 0:00:33]} 89. Kb7 {[%emt 0:00:08]} 1-0

[Event "9th HDBank Open 2019"]
[Site "Ho Chi Minh City"]
[Date "2019.03.12"]
[Round "8.27"]
[White "Dang, Hoang Son"]
[Black "Vo, Thanh Ninh"]
[Result "0-1"]
[ECO "C00"]
[WhiteElo "2385"]
[BlackElo "2358"]
[Annotator "NA"]
[PlyCount "140"]
[EventDate "2019.03.07"]
[EventType "swiss"]
[EventCountry "VIE"]
[SourceTitle "playchess.com"]
[Source "ChessBase"]
[SourceQuality "1"]
[TimeControl "5400+30"]

{[%evp 8,113,-6,-6,0,32767,-6,-1,10,-9,-16,-8,6,16,17,12,20,17,21,9,23,12,11,0,0,9,26,0,4,0,301,0,0,-8,0,0,0,0,0,0,0,0,34,35,172,7,0,0,0,0,0,0,0,-17,32767,32767,32767,32767,0,-31,-20,0,-22,-19,0,0,0,0,0,0,0,0,0,0,0,0,0,0,0,0,0,0,1281,32767,32767,32767,32767,-457,-517,-458,-685,-689,-653,-462,-620,-443,-610,32767,32767,32767,32767,32767,32767,-393,-549,-524,-595,-803]} 1. e4 {[%emt 0:01:41]} e6 {[%emt 0:00:13]} 2. d3 {[%emt 0:00:28]} d5 {[%emt 0:00:15]} 3. Nd2 {[%emt 0:00:07]} Nf6 {[%emt 0:02:38]} 4. Ngf3 {[%emt 0:00:08]} b6 {[%emt 0:05:44]} 5. e5 {[%emt 0:02:12]} Nfd7 {[%emt 0:01:13]} 6. d4 {[%emt 0:00:32]} c5 {[%emt 0:00:42] LiveBook: 51 Games} 7. c3 {[%emt 0:00:26]} Ba6 {[%emt 0:04:19] C00: French: Unusual White 2nd moves} (7... Be7 8. Bb5 Ba6 9. a4 cxd4 10. cxd4 Qc8 11. Qe2 Qb7 12. O-O Bxb5 13. axb5 a6 14. Ne1 axb5 15. Rxa8 Qxa8 {½-½ (86) Andriasian,Z (2613)-Hou,Y (2590) Moscow 2010}) 8. a3 {[%emt 0:03:58]} Bxf1 {[%emt 0:03:58]} 9. Nxf1 {[%emt 0:02:11]} c4 {[%emt 0:00:15]} 10. Ng3 {[%emt 0:00:56]} Nc6 $146 {[%emt 0:00:17]} ({Predecessor:} 10... Be7 11. O-O Nc6 12. Be3 Qc7 13. Qc2 h6 {0-1 (43) Pokora,L (2009)-Boruvka,R Liberec 2006}) 11. O-O {[%emt 0:00:20]} Na5 {[%emt 0:05:26]} 12. Be3 {[%emt 0:02:39]} Nb3 {[%emt 0:12:10]} 13. Rb1 {[%emt 0:00:54]} Be7 {[%emt 0:00:21]} 14. Nd2 {[%emt 0:00:18]} Nxd2 {[%emt 0:00:05]} 15. Bxd2 {[%emt 0:00:06]} g6 {[%emt 0:08:27]} 16. Bh6 {[%emt 0:03:00]} Bf8 {[%emt 0:02:29]} 17. Bxf8 {[%emt 0:01:48]} Kxf8 {[%emt 0:00:33]} 18. f4 {[%emt 0:00:09]} Nb8 $2 {[%emt 0:01:28] [#]} (18... Qe7 $11 {and Black is okay.}) 19. Rf2 $2 {[%emt 0:00:57]} (19. f5 $1 $18 {[%cal Rf5e6][%mdl 512]} exf5 {[#]} 20. Nxf5 $1 {[%mdl 512]} gxf5 21. Rxf5) 19... Nc6 {[%emt 0:00:08]} 20. Nf1 {[%emt 0:00:11]} Ne7 {[%emt 0:03:03]} 21. g4 {[%emt 0:03:02]} h5 {[%emt 0:00:14]} 22. h3 {[%emt 0:00:04]} Ke8 {[%emt 0:09:10]} 23. Ne3 {[%emt 0:00:39]} hxg4 {[%emt 0:00:14]} 24. hxg4 {[%emt 0:00:06]} Rh3 {[%emt 0:00:11]} 25. Rh2 {[%emt 0:01:00]} Rxe3 {[%emt 0:02:38]} (25... Rxh2 $14 26. Kxh2 b5) 26. Rh8+ $2 {[%emt 0:02:42]} (26. Qa4+ $18 Kf8 27. Kf2) 26... Kd7 {[%emt 0:00:05]} 27. Rxd8+ {[%emt 0:02:25]} Rxd8 {[%emt 0:00:04]} 28. Kg2 {[%emt 0:00:09]} Rh8 {[%emt 0:00:26]} 29. Qa4+ {[%emt 0:00:53]} Nc6 {[%emt 0:00:04]} 30. Rh1 {[%emt 0:00:41]} Rxh1 {[%emt 0:10:24]} 31. Kxh1 {[%emt 0:00:02]} Re1+ {[%emt 0:00:05]} 32. Kh2 {[%emt 0:00:03]} Re2+ {[%emt 0:00:03] Double Attack} 33. Kg3 {[%emt 0:00:10]} Rxb2 {[%emt 0:00:03]} 34. Qd1 {[%emt 0:00:13]} Rb3 {[%emt 0:00:10]} 35. Qd2 {[%emt 0:00:05]} Rxa3 {[%emt 0:00:22]} 36. Kh4 {[%emt 0:00:05]} b5 {[%emt 0:00:26]} 37. Kg5 {[%emt 0:00:07]} Ra6 {[%emt 0:16:20]} 38. Kf6 {[%emt 0:00:22]} Nd8 {[%emt 0:00:04]} 39. Qb2 {[%emt 0:00:13]} Rb6 {[%emt 0:00:07]} 40. Qb4 {[%emt 0:00:25]} Rb7 {[%emt 0:00:17]} 41. Kg7 {[%emt 0:00:37]} Ke8 $1 {[%emt 0:03:34]} 42. Kg8 {[%emt 0:02:22]} Rb6 {[%emt 0:00:38]} 43. Qc5 {[%emt 0:00:42]} b4 {[%emt 0:03:12]} 44. cxb4 {[%emt 0:00:16]} Rc6 $2 {[%emt 0:00:02]} (44... Rb7 $11) 45. Qf8+ {[%emt 0:00:13]} Kd7 {[%emt 0:00:04]} 46. b5 {[%emt 0:00:08]} Rc7 {[%emt 0:00:14]} 47. Qd6+ {[%emt 0:03:05]} Kc8 {[%emt 0:00:04]} 48. Qa6+ {[%emt 0:00:18] [#]} Kb8 $1 {[%emt 0:01:09]} 49. b6 {[%emt 0:00:46]} axb6 {[%emt 0:00:24]} 50. Qxb6+ {[%emt 0:00:06] [#]} Nb7 $1 {[%emt 0:00:44]} 51. Qb2 {[%emt 0:00:21]} c3 {[%emt 0:00:04]} 52. Qc2 {[%emt 0:00:02]} Na5 {[%emt 0:01:44]} 53. Kf8 {[%emt 0:00:14]} Ka7 {[%emt 0:02:05]} 54. Ke8 {[%emt 0:01:14]} Kb6 {[%emt 0:00:31]} 55. Qb1+ {[%emt 0:00:26]} Ka6 {[%emt 0:00:34]} 56. Qc2 $19 {[%emt 0:00:28] [#]} Kb5 $1 {[%emt 0:00:14]} 57. Kd8 {[%emt 0:00:14]} Rc4 {[%emt 0:00:30]} 58. Kd7 {[%emt 0:04:44]} Nc6 {[%emt 0:01:07]} 59. f5 {[%emt 0:00:47]} gxf5 {[%emt 0:00:12]} 60. gxf5 {[%emt 0:00:07]} Nb4 {[%emt 0:02:19]} 61. Qc1 {[%emt 0:01:00]} c2 {[%emt 0:02:36]} 62. fxe6 {[%emt 0:00:03]} fxe6 {[%emt 0:00:08]} 63. Kxe6 {[%emt 0:00:04]} Nd3 {[%emt 0:00:25]} 64. Qa3 {[%emt 0:00:06]} Nf4+ {[%emt 0:00:46]} 65. Kf5 {[%emt 0:01:59]} c1=Q {[%emt 0:00:05]} 66. Qa7 {[%emt 0:00:10]} Qe3 {[%emt 0:01:12]} 67. Qb7+ {[%emt 0:00:42]} Ka4 {[%emt 0:00:11]} 68. Qa6+ {[%emt 0:01:07]} Kb3 {[%emt 0:00:09]} 69. Kf6 {[%emt 0:01:28]} Qxd4 {[%emt 0:00:20]} 70. Qd6 {[%emt 0:00:49]} Nd3 0-1

[Event "9th HDBank Open 2019"]
[Site "Ho Chi Minh City"]
[Date "2019.03.12"]
[Round "8.28"]
[White "Sukandar, Irine Kharisma"]
[Black "Tran, Minh Thang"]
[Result "1-0"]
[ECO "B40"]
[WhiteElo "2381"]
[BlackElo "2343"]
[Annotator "NA"]
[PlyCount "63"]
[EventDate "2019.03.07"]
[EventType "swiss"]
[EventCountry "VIE"]
[SourceTitle "playchess.com"]
[Source "ChessBase"]
[SourceQuality "1"]
[TimeControl "5400+30"]

{[%evp 12,56,5,19,32767,20,14,22,33,18,0,12,122,114,277,288,265,306,275,268,278,280,32767,275,276,275,286,267,311,288,297,305,264,279,286,272,265,280,279,280,313,288,410,436,679,698,653]} 1. e4 {[%emt 0:00:00]} c5 {[%emt 0:05:52]} 2. Nf3 {[%emt 0:00:23]} e6 {[%emt 0:00:10]} 3. c4 {[%emt 0:00:52]} Nc6 {[%emt 0:00:38]} 4. Nc3 {[%emt 0:00:18]} Nf6 {[%emt 0:00:27]} 5. Be2 {[%emt 0:00:52]} Be7 {[%emt 0:00:45]} 6. O-O {[%emt 0:00:50]} e5 {[%emt 0:01:28]} 7. d3 {[%emt 0:00:28]} h6 {[%emt 0:00:08] A34: Symmetrical English: 2 Nc3, lines with ...d5} (7... O-O 8. a3 d6 9. Rb1 {½-½ (9) Oratovsky,M (2486)-Vazquez Igarza,R (2596) San Sebastian 2015}) 8. a3 $146 {[%emt 0:00:55]} ({Predecessor:} 8. Be3 O-O 9. Nd2 d6 10. f4 Nd4 11. h3 a6 12. f5 Bd7 13. g4 Nh7 14. Bxd4 exd4 15. Nd5 {½-½ (42) Rosenhain,R (1647)-Spangenberg,R (1788) Germany 2014}) 8... O-O {[%emt 0:09:19]} 9. Rb1 {[%emt 0:00:26]} b6 {[%emt 0:09:28]} 10. Nd5 {[%emt 0:02:19]} d6 {[%emt 0:01:58]} 11. b4 {[%emt 0:08:40]} Bg4 {[%emt 0:07:32]} (11... Bd7 $11) 12. Nxe5 $1 {[%emt 0:20:52]} Bxe2 $2 {[%emt 0:08:55]} (12... Nxe5 $16 {is a better defense.} 13. Nxf6+ Bxf6) 13. Nxc6 {[%emt 0:00:17]} Bxd1 {[%emt 0:02:40]} 14. Ndxe7+ {[%emt 0:00:18]} Kh7 {[%emt 0:00:42]} 15. Nxd8 {[%emt 0:00:06]} Bc2 {[%emt 0:02:09]} 16. Rb2 {[%emt 0:01:23]} Bxd3 {[%emt 0:00:07]} 17. Rd1 {[%emt 0:00:56]} Bxc4 {[%emt 0:01:30]} 18. Ndc6 {[%emt 0:04:08]} Nxe4 {[%emt 0:00:11]} 19. f3 {[%emt 0:06:38]} Nc3 {[%emt 0:01:04]} 20. Rxd6 {[%emt 0:00:33]} Ne2+ {[%emt 0:05:17] [#]} 21. Kh1 $1 {[%emt 0:01:35]} ({Weaker is} 21. Rxe2 Bxe2 22. bxc5 bxc5 $16) 21... cxb4 {[%emt 0:02:55]} 22. Rxb4 {[%emt 0:01:29]} b5 {[%emt 0:01:19]} 23. Be3 {[%emt 0:01:35]} a5 {[%emt 0:01:06]} 24. Rb1 {[%emt 0:00:46]} Rfe8 {[%emt 0:01:10]} 25. Bd2 {[%emt 0:01:38]} b4 {[%emt 0:06:59]} 26. axb4 {[%emt 0:00:47]} a4 {[%emt 0:00:05]} 27. Nd5 {[%emt 0:09:53]} a3 {[%emt 0:04:40]} (27... Re6 $142) 28. Nc7 $18 {[%emt 0:04:26]} a2 {[%emt 0:01:27]} 29. Ra1 {[%emt 0:00:07]} Ra3 {[%emt 0:02:22]} 30. Nxe8 {[%emt 0:01:40]} Rb3 {[%emt 0:00:06]} 31. Be1 {[%emt 0:00:53]} Nf4 {[%emt 0:06:34]} 32. Na5 {[%emt 0:02:32]} 1-0

[Event "9th HDBank Open 2019"]
[Site "Ho Chi Minh City"]
[Date "2019.03.13"]
[Round "9.28"]
[White "Nitin, S.."]
[Black "Nguyen, Thi Thanh An"]
[Result "1-0"]
[ECO "B90"]
[WhiteElo "2408"]
[BlackElo "2245"]
[Annotator "RC"]
[PlyCount "75"]
[EventDate "2019.03.07"]
[EventType "swiss"]
[EventCountry "VIE"]
[SourceTitle "playchess.com"]
[Source "ChessBase"]
[SourceQuality "1"]
[TimeControl "5400+30"]

1. e4 {[%emt 0:00:06]} c5 {[%emt 0:00:00]} 2. Nf3 {[%emt 0:00:18]} d6 {[%emt 0:05:50]} 3. d4 {[%emt 0:00:13]} cxd4 {[%emt 0:00:05]} 4. Nxd4 {[%emt 0:00:20]} Nf6 {[%emt 0:00:09]} 5. Nc3 {[%emt 0:00:06]} a6 {[%emt 0:00:05]} 6. Be3 {[%emt 0:00:07]} g6 {[%emt 0:00:06]} 7. f3 {[%emt 0:01:05]} Bg7 {[%emt 0:00:12]} 8. Qd2 {[%emt 0:00:09]} h5 {[%emt 0:00:11]} 9. O-O-O {[%emt 0:00:26]} Nbd7 {[%emt 0:00:09]} 10. Kb1 {[%emt 0:01:37]} b5 {[%emt 0:00:46]} 11. g3 {[%emt 0:04:39]} Bb7 {[%emt 0:00:47]} 12. h3 {[%emt 0:02:36]} Qc7 {[%emt 0:01:14]} 13. Nb3 {[%emt 0:02:56]} Rc8 {[%emt 0:04:32]} 14. Bd3 {[%emt 0:04:08]} Ne5 {[%emt 0:11:01]} 15. Qf2 {[%emt 0:01:04]} Nc4 {[%emt 0:05:43]} 16. Bxc4 {[%emt 0:00:10]} bxc4 {[%emt 0:00:05]} 17. Bb6 {[%emt 0:04:15]} Qb8 {[%emt 0:00:11]} 18. Nc1 {[%emt 0:00:18]} Bc6 {[%emt 0:08:57]} 19. Bd4 {[%emt 0:09:15]} Qb7 {[%emt 0:05:09]} 20. g4 {[%emt 0:02:36]} e5 {[%emt 0:04:32]} 21. Be3 {[%emt 0:06:00]} Rb8 {[%emt 0:00:42]} 22. b3 {[%emt 0:00:09]} O-O {[%emt 0:12:43]} 23. Rxd6 {[%emt 0:02:36]} Rfc8 {[%emt 0:00:08]} 24. Rhd1 {[%emt 0:03:56]} hxg4 {[%emt 0:03:33]} 25. hxg4 {[%emt 0:00:06]} a5 {[%emt 0:00:16]} 26. Qh4 {[%emt 0:05:08]} Ne8 {[%emt 0:05:19]} 27. R6d2 {[%emt 0:00:55]} Qb4 {[%emt 0:05:16]} 28. Rh2 {[%emt 0:00:16]} cxb3 {[%emt 0:00:09]} 29. axb3 {[%emt 0:02:25]} Qxc3 {[%emt 0:00:35]} 30. Bh6 {[%emt 0:00:28]} f6 {[%emt 0:01:09]} 31. Bxg7 {[%emt 0:01:31]} Nxg7 {[%emt 0:00:14]} 32. Qxf6 {[%emt 0:05:18]} Rf8 {[%emt 0:09:16]} 33. Qxg6 {[%emt 0:00:36]} Be8 {[%emt 0:01:43]} 34. Qh7+ {[%emt 0:01:42]} Kf7 {[%emt 0:00:06]} 35. Rh5 {[%emt 0:01:25]} Rb6 {[%emt 0:05:04]} 36. Rg5 {[%emt 0:01:37]} Rg8 {[%emt 0:00:39]} 37. Rf5+ {[%emt 0:00:11]} Ke7 {[%emt 0:00:41]} 38. Qh4+ {[%emt 0:00:10]} 1-0